[Event "ETCC Open 2023"]
[Site "Budva"]
[Date "2023.11.11"]
[Round "1.30"]
[White "Fressinet, Laurent"]
[Black "Macovei, Andrei"]
[Result "1/2-1/2"]
[ECO "E11"]
[WhiteElo "2640"]
[BlackElo "2446"]
[Annotator "TA"]
[PlyCount "77"]
[EventDate "2023.11.10"]
[EventType "team-tourn"]
[EventCountry "MNE"]
[SourceTitle "playchess.com"]
[Source "ChessBase"]
[SourceQuality "1"]
[WhiteTeam "France"]
[BlackTeam "Moldova"]
[WhiteTeamCountry "FRA"]
[BlackTeamCountry "MDA"]
[TimeControl "40/5400+30:1800+30"]

{[%evp 12,77,25,17,25,19,26,24,23,12,18,13,18,10,11,19,39,-9,0,-4,13,-55,0,0,0,0,0,0,0,0,0,0,6,0,18,6,7,4,1,-15,0,-25,-24,-75,-75,-88,-78,-82,-27,-69,-23,-26,0,0,0,0,0,0,0,0,0,0,0,0,0,0,0,0]} 1. d4 {[%emt 0:00:04]} Nf6 {[%emt 0:00:05]} 2. Nf3 {[%emt 0:00:06]} e6 {[%emt 1:31:25]} 3. c4 {[%emt 0:00:25]} Bb4+ {[%emt 0:00:00]} 4. Bd2 {[%emt 0:00:10]} Bxd2+ {[%emt 0:00:00]} 5. Qxd2 {[%emt 0:00:42]} d5 {[%emt 0:00:00]} 6. g3 {[%emt 0:00:54]} O-O {[%emt 0:00:00]} 7. Bg2 {[%emt 0:00:38]} c6 $1 {[%emt 0:00:00][%mdl 4] is currently scoring better than 7...Nbd7. E11: Bogo-Indian.} 8. O-O {[%emt 0:01:28]} dxc4 {[%emt 0:00:00]} 9. Ne5 {[%emt 0:01:25]} b5 {[%emt 0:00:00] White has an edge.} 10. b3 {[%emt 0:00:48]} ({Much worse is} 10. Nxc6 Nxc6 11. Bxc6 Rb8 $11) 10... cxb3 $1 {[%emt 0:00:00]} 11. axb3 {[%emt 0:00:08]} Bb7 {[%emt 0:00:00] [#]} 12. Nc3 $146 {[%emt 0:01:15][%mdl 1024] White has compensation.} ({Predecessor:} 12. Rc1 a5 13. Qb2 Qb6 14. Nd2 Nbd7 15. Nxc6 Rfe8 16. Rc2 Nd5 17. Rac1 N7f6 18. Ne4 Nxe4 19. Bxe4 {0-1 Dragnev,V (2553)-Vitiugov,N (2747) Wch Rapid Moscow 2019 (5)}) 12... Nbd7 {[%emt 0:00:00] [#] ...Nxe5 is the strong threat.} 13. Rfd1 {[%emt 0:06:03]} Qb6 {[%emt 0:00:00]} 14. b4 {[%emt 0:08:54]} (14. Nxd7 $14 Nxd7 15. Ne4) 14... Rfd8 {[%emt 0:00:00] Threatens to win with ...Nxe5.} 15. Qb2 {[%emt 0:11:18]} h6 {[%emt 0:00:00]} 16. e3 {[%emt 0:16:49]} (16. Nd3 $11) 16... Qc7 {[%emt 0:00:00]} (16... Nxe5 $15 17. dxe5 Rxd1+ 18. Rxd1 Nd5) 17. Rdc1 {[%emt 0:14:02][%cal Oc3b5]} Nxe5 {[%emt 0:00:00]} 18. Nxb5 $1 {[%emt 0:00:20][%mdl 64] [#] Pin, Double Attack} Qb6 {[%emt 0:00:00]} 19. dxe5 {[%emt 0:00:09] Na3 would be deadly.} cxb5 {[%emt 0:00:00]} 20. Bxb7 {[%emt 0:01:59]} Qxb7 {[%emt 0:00:00]} 21. exf6 {[%emt 0:00:11]} g6 {[%emt 0:00:00]} 22. Qe2 {[%emt 0:05:25]} Rd7 {[%emt 0:00:00]} 23. e4 {[%emt 0:15:07]} Rad8 {[%emt 0:00:00]} 24. Qe3 {[%emt 0:00:32]} Kh7 {[%emt 0:00:00]} 25. Qf4 {[%emt 0:01:03]} g5 {[%emt 0:00:32]} 26. Qe5 {[%emt 0:04:06]} Qb8 {[%emt 0:00:11]} 27. Qxb8 {[%emt 0:02:01]} (27. Qc5 $11 {remains equal.}) 27... Rxb8 $11 {[%emt 0:00:01][%mdl 4096] Endgame KRR-KRR} 28. Rc5 {[%emt 0:02:33]} Kg6 {[%emt 0:01:57]} 29. e5 {[%emt 0:00:04]} g4 {[%emt 0:01:56]} (29... Rbb7 $17 {aiming for ...Rd4.} 30. Rc8 Kf5) 30. Kg2 {[%emt 0:00:32]} h5 {[%emt 0:00:47]} (30... Rbb7 $1 $15 {is more appropriate.}) 31. h3 {[%emt 0:01:39]} Rd4 {[%emt 0:02:17]} (31... Rd2 $5 {[%cal Rg4h3]}) 32. Rxa7 {[%emt 0:02:02] The position is equal.} Rxb4 {[%emt 0:00:04]} 33. Rcc7 {[%emt 0:00:30]} Rf8 {[%emt 0:00:13]} 34. Rab7 {[%emt 0:01:36]} Rb2 {[%emt 0:03:25]} 35. hxg4 {[%emt 0:01:11]} hxg4 {[%emt 0:00:01]} 36. Rc5 {[%emt 0:00:06]} Rd8 {[%emt 0:01:38] And now ...Rdd2 would win.} 37. Rbxb5 {[%emt 0:00:26]} Rxb5 {[%emt 0:00:29]} 38. Rxb5 {[%emt 0:00:01]} Rd5 {[%emt 0:00:09]} 39. Rb4 {[%emt 0:00:36] Weighted Error Value: White=0.11 (very precise) /Black=0.10 (very precise)} ({But not} 39. Rxd5 $2 exd5 40. Kg1 Kf5 $19) 1/2-1/2

[Event "ETCC Open 2023"]
[Site "Budva"]
[Date "2023.11.11"]
[Round "1.31"]
[White "Iordachescu, Viorel"]
[Black "Lagarde, Maxime"]
[Result "0-1"]
[ECO "A22"]
[WhiteElo "2586"]
[BlackElo "2629"]
[Annotator "TA"]
[PlyCount "86"]
[EventDate "2023.11.10"]
[EventType "team-tourn"]
[EventCountry "MNE"]
[SourceTitle "playchess.com"]
[Source "ChessBase"]
[SourceQuality "1"]
[WhiteTeam "Moldova"]
[BlackTeam "France"]
[WhiteTeamCountry "MDA"]
[BlackTeamCountry "FRA"]
[TimeControl "40/5400+30:1800+30"]

{[%evp 18,86,0,0,20,0,0,0,0,0,0,0,-9,-10,0,-27,-17,-25,-25,-18,-20,-16,0,-19,-18,-25,-18,-17,-28,-68,0,0,0,0,0,0,0,0,0,0,0,0,51,0,0,0,229,-15,-12,-29,-29,-54,-6,-20,-22,-22,-24,-18,-20,-200,-182,-190,-208,-190,-204,-188,-203,-335,-319,-320,-299]} 1. Nf3 {[%emt 0:00:38]} c5 {[%emt 0:00:20]} 2. c4 {[%emt 0:00:36]} Nf6 {[%emt 0:00:11]} 3. Nc3 {[%emt 0:00:25]} d5 {[%emt 0:00:22]} 4. cxd5 {[%emt 0:00:24]} Nxd5 {[%emt 0:00:04]} 5. g3 {[%emt 0:00:33]} Nc6 {[%emt 0:00:21]} 6. Bg2 {[%emt 0:00:27]} Nxc3 {[%emt 0:00:24]} 7. bxc3 {[%emt 0:02:07]} e5 {[%emt 0:00:05]} 8. O-O {[%emt 0:02:11]} Be7 {[%emt 0:00:13]} 9. Rb1 {[%emt 0:04:13]} O-O {[%emt 0:04:08]} 10. d3 {[%emt 0:02:14]} Qc7 {[%emt 0:02:44] The main line 10...Qc7 scores better than 10...Rb8. A22: English Opening: 1...e5 2 Nc3 Nf6.} 11. Nd2 {[%emt 0:10:12][%cal Bf3d2,Bd2c4,Bc4e3,Be3d5][%mdl 32] 11.Be3 is not played anymore.} Rb8 {[%emt 0:10:22]} 12. Nc4 {[%emt 0:04:43]} b5 {[%emt 0:04:48] The position is equal.} 13. Ne3 {[%emt 0:00:39]} Be6 {[%emt 0:00:38]} 14. c4 {[%emt 0:16:23]} a6 {[%emt 0:06:57]} 15. Nd5 {[%emt 0:07:06]} Qd7 {[%emt 0:05:38]} 16. Bb2 {[%emt 0:03:53] [#]} Bd6 $146 {[%emt 0:05:28]} ({Predecessor:} 16... f6 17. Qd2 Bd6 18. e3 Ne7 19. Rfc1 Nxd5 20. cxd5 Bh3 21. e4 Bxg2 22. Kxg2 f5 {½-½ Mathes,C-Granz,T (1839) GER OS-307 email 2016}) 17. Qd2 {[%emt 0:04:31]} Bh3 {[%emt 0:15:22]} 18. Bxh3 {[%emt 0:01:37]} Qxh3 {[%emt 0:00:12]} 19. e4 {[%emt 0:00:36]} f5 {[%emt 0:04:40]} 20. f3 {[%emt 0:03:17]} bxc4 {[%emt 0:10:06]} (20... Rf7 {is more complex.} 21. Ba1 bxc4 22. Ne3 fxe4 23. Rxb8+ Bxb8 24. dxe4 Nd4) 21. dxc4 {[%emt 0:04:10]} fxe4 {[%emt 0:01:54]} 22. fxe4 {[%emt 0:00:38]} Nd4 {[%emt 0:13:12]} 23. Bxd4 {[%emt 0:00:16]} exd4 {[%emt 0:02:45]} (23... Rxb1 $15 24. Rxb1 cxd4) 24. Rxf8+ $11 {[%emt 0:02:30]} Rxf8 {[%emt 0:00:09]} 25. Qg5 {[%emt 0:03:11] Inhibits Qg4. Strongly threatening e5.} h6 {[%emt 0:03:48]} 26. Qg6 {[%emt 0:03:53]} Qd7 {[%emt 0:01:57]} 27. Kg2 {[%emt 0:06:12]} Be5 {[%emt 0:01:04]} 28. Rb2 {[%emt 0:12:13]} Kh8 {[%emt 0:02:59]} 29. Qh5 {[%emt 0:00:57]} Bd6 {[%emt 0:01:40]} ({Black should try} 29... Rb8 $11 30. Rxb8+ Bxb8) 30. e5 {[%emt 0:03:38]} (30. Rb6 $1 $14) 30... Rf5 $40 {[%emt 0:00:40][%mdl 128] White needs to defend precisely.} 31. Qh3 {[%emt 0:00:28]} Bf8 {[%emt 0:01:22] [#]} (31... Bxe5 $11 {and Black has nothing to worry.} 32. Ne7 d3 33. Ng6+ (33. Qxf5 Qxf5 34. Nxf5 Bxb2 $11) 33... Kg8 34. Nxe5 {[%mdl 64] Pin} Qe6) 32. Kg1 $2 {[%emt 0:00:37]} ({Only move:} 32. Re2 $1 $18 {aiming for e6.} Qe6 33. Nf4) 32... Qf7 {[%emt 0:00:55]} 33. Nf4 {[%emt 0:00:50] Threatens to win with e6.} (33. Re2 $5 {[%cal Re5e6]} d3 {[%mdl 64] Deflection} 34. Rd2 $15) 33... Rxe5 {[%emt 0:00:29][%cal Of8d6] ...Bd6! is the strong threat.} 34. Qc8 $1 {[%emt 0:00:20]} Re8 {[%emt 0:00:45]} (34... Kh7 $15 35. Kg2 Re8) 35. Rb7 {[%emt 0:00:43]} Rxc8 {[%emt 0:00:33]} (35... Qxc4 $2 36. Qxe8 Qc1+ 37. Kf2 Qc2+ 38. Qe2 $18) 36. Rxf7 {[%emt 0:00:04][%mdl 4096] Endgame KRB-KRN} Re8 {[%emt 0:00:41][%cal Bc8e8,Be8e2,Be2h2][%mdl 32]} 37. Kf2 {[%emt 0:00:13]} Bd6 {[%emt 0:00:20]} 38. Nd5 $2 {[%emt 0:00:36] This move loses the game for White.} (38. Rf5 $11 {and White stays safe.}) 38... d3 $19 {[%emt 0:00:35] White must now prevent ...d2.} 39. Rf3 {[%emt 0:00:14]} Re2+ {[%emt 0:00:07][%mdl 64] [#] Skewer} 40. Kf1 {[%emt 0:00:02]} Rxh2 {[%emt 0:00:27]} 41. Rxd3 {[%emt 0:30:05]} Rxa2 {[%emt 0:30:11]} 42. g4 {[%emt 0:00:45]} (42. Nf6 {was forced.}) 42... Be5 {[%emt 0:00:41]} 43. Ne7 {[%emt 0:00:10] Hoping for Ng6+.} Bf6 {[%emt 0:00:00] Weighted Error Value: White=0.27 (precise) /Black=0.16 (very precise)} 0-1

[Event "ETCC Open 2023"]
[Site "Budva"]
[Date "2023.11.11"]
[Round "1.32"]
[White "Maurizzi, Marc`Andria"]
[Black "Lashkin, Jegor"]
[Result "1/2-1/2"]
[ECO "E04"]
[WhiteElo "2572"]
[BlackElo "2457"]
[Annotator "TA"]
[PlyCount "75"]
[EventDate "2023.11.10"]
[EventType "team-tourn"]
[EventCountry "MNE"]
[SourceTitle "playchess.com"]
[Source "ChessBase"]
[SourceQuality "1"]
[WhiteTeam "France"]
[BlackTeam "Moldova"]
[WhiteTeamCountry "FRA"]
[BlackTeamCountry "MDA"]
[TimeControl "40/5400+30:1800+30"]

{[%evp 11,75,0,0,0,0,-1,0,11,0,-2,0,-11,15,0,18,-32,19,30,82,29,42,0,0,0,84,-53,10,17,10,14,16,0,0,6,0,2,79,61,37,0,0,-1,0,0,0,0,0,-9,-9,-15,-4,-30,0,0,0,0,0,0,0,0,0,0,0,-31,0,0]} 1. d4 {[%emt 0:00:31]} Nf6 {[%emt 0:00:23]} 2. c4 {[%emt 0:00:07]} e6 {[%emt 0:00:20]} 3. Nf3 {[%emt 0:00:18]} d5 {[%emt 0:00:13]} 4. g3 {[%emt 0:02:05]} dxc4 {[%emt 0:00:46]} 5. Bg2 {[%emt 0:00:54]} c6 {[%emt 0:00:11]} 6. O-O {[%emt 0:01:37]} b5 {[%emt 0:00:07]} 7. a4 {[%emt 0:01:19] E04: Open Catalan: 5 Nf3.} Bb7 {[%emt 0:01:00]} 8. Ne5 {[%emt 0:03:17] Black must now prevent axb5.} a6 {[%emt 0:00:30]} 9. b3 {[%emt 0:02:38]} cxb3 {[%emt 0:00:21]} 10. Qxb3 {[%emt 0:01:21]} Qxd4 {[%emt 0:01:48]} 11. Bb2 {[%emt 0:00:49]} Qb6 {[%emt 0:05:57]} 12. Nd2 {[%emt 0:12:59][%cal Oe5f7] aiming for Nxf7!} Be7 {[%emt 0:02:06] [#]} 13. Ne4 $146 {[%emt 0:01:39]} (13. Nxf7 $11 Kxf7 14. Nc4) ({Predecessor:} 13. Nxf7 Kxf7 14. Nc4 Qd8 15. Ne5+ Kf8 16. Qxe6 Qe8 17. axb5 axb5 18. Rxa8 Bxa8 19. Ra1 {1-0 Wagner,D (2335)-Brunello,M (2354) AUT-chT (Women) 2122 2021 (5.1)}) 13... Nxe4 {[%emt 0:12:12]} (13... O-O $1 $15) 14. Bxe4 $11 {[%emt 0:01:28]} O-O {[%emt 0:03:15]} (14... Qc7 $11) 15. Qd3 {[%emt 0:04:04]} (15. Nxf7 $1 $16 Rxf7 16. Qxe6) 15... h6 {[%emt 0:09:58]} 16. axb5 {[%emt 0:27:36]} cxb5 {[%emt 0:27:31]} 17. Rac1 {[%emt 0:07:06]} a5 {[%emt 0:12:48] [#]} (17... Bxe4 $11 18. Qxe4 Ra7) 18. Ng4 {[%emt 0:06:55] White is much more active.} ({Better is} 18. Bd4 $1 $16 Bxe4 19. Qxe4) 18... f5 {[%emt 0:09:36] [#]} (18... e5 $1 $15) 19. Qc3 $1 {[%emt 0:09:32][%csl Gb2][%cal Rc3g7]} Bf6 {[%emt 0:00:28]} (19... Bxe4 $2 20. Qxg7#) 20. Nxf6+ {[%emt 0:00:04]} Rxf6 {[%emt 0:02:06]} 21. Bxb7 {[%emt 0:00:58]} Qxb7 {[%emt 0:00:06]} 22. Rfd1 {[%emt 0:02:51] Rd8+ would be deadly.} Na6 $1 {[%emt 0:03:58][%cal Bb8a6,Ba6c5,Bc5a4][%mdl 32]} 23. Qxa5 {[%emt 0:00:52] Black is weak on the dark squares} Rff8 {[%emt 0:02:13] [#]} (23... Rf7 $1 $11 {remains equal.}) 24. Rd6 $1 $16 {[%emt 0:03:24][%cal Od6b6][%mdl 1024] And now Rb6! would win. White has strong compensation.} Nc5 $1 {[%emt 0:00:09]} 25. Qd2 {[%emt 0:03:33]} (25. Qb4 $5 {[%cal Rc1c5]} Na4 26. Rxe6 $16) 25... Rac8 {[%emt 0:02:52]} 26. Qd1 {[%emt 0:04:58]} Na4 {[%emt 0:01:57]} (26... Kh7 {simplifies} 27. f3 b4 28. Kf1 Rf7) 27. Ba1 {[%emt 0:00:33]} Rxc1 {[%emt 0:00:17]} 28. Qxc1 {[%emt 0:00:01]} Rc8 {[%emt 0:00:34]} 29. Qe3 {[%emt 0:00:43]} Qe4 {[%emt 0:00:45]} 30. Qxe4 {[%emt 0:00:04]} fxe4 $11 {[%emt 0:00:08][%mdl 4096] Endgame KRB-KRN} 31. Bd4 {[%emt 0:00:35]} (31. Kg2 $5 {[%cal Rd6e6]}) 31... Nc3 {[%emt 0:00:53]} 32. Bxc3 {[%emt 0:00:14]} Rxc3 {[%emt 0:00:01]} 33. Rxe6 {[%emt 0:00:05] KR-KR} Rc4 {[%emt 0:00:27]} 34. Rb6 {[%emt 0:00:21]} b4 {[%emt 0:01:00]} 35. Kg2 {[%emt 0:00:03]} Kf7 {[%emt 0:00:19]} 36. h4 {[%emt 0:01:50]} Ke7 {[%emt 0:00:18]} 37. Rg6 {[%emt 0:00:42]} Kf7 {[%emt 0:00:22]} 38. Rb6 {[%emt 0:00:23] Weighted Error Value: White=0.17 (very precise) /Black=0.20 (precise)} 1/2-1/2

[Event "ETCC Open 2023"]
[Site "Budva"]
[Date "2023.11.11"]
[Round "1.33"]
[White "Georgiadis, Nico"]
[Black "Van Foreest, Jorden"]
[Result "0-1"]
[ECO "B11"]
[WhiteElo "2556"]
[BlackElo "2700"]
[Annotator "TA"]
[PlyCount "78"]
[EventDate "2023.11.10"]
[EventType "team-tourn"]
[EventCountry "MNE"]
[SourceTitle "playchess.com"]
[Source "ChessBase"]
[SourceQuality "1"]
[WhiteTeam "Switzerland"]
[BlackTeam "Netherlands"]
[WhiteTeamCountry "SUI"]
[BlackTeamCountry "NED"]
[TimeControl "40/5400+30:1800+30"]

{[%evp 12,78,19,12,52,7,29,0,0,-2,19,4,12,5,25,23,28,16,28,21,34,19,17,22,15,1,37,21,16,7,75,75,75,75,75,75,75,75,166,108,199,0,0,0,0,0,0,0,0,0,0,0,0,0,0,0,0,-188,-204,-313,-325,-378,-366,-332,-342,-368,-358,-489,-471]} 1. e4 {[%emt 0:00:03]} c6 {[%emt 0:00:31]} 2. Nf3 {[%emt 0:00:27]} d5 {[%emt 0:00:11]} 3. Nc3 {[%emt 0:00:06]} Bg4 {[%emt 0:00:37]} 4. h3 {[%emt 0:00:06][%cal Bh2h3,Bh3h4,Bh4h5][%mdl 32]} Bxf3 {[%emt 0:00:07]} 5. Qxf3 {[%emt 0:00:05]} e6 {[%emt 0:00:19]} 6. d3 {[%emt 0:00:38]} Nd7 {[%emt 0:01:12]} 7. Be2 {[%emt 0:00:31]} g6 {[%emt 0:01:27][%cal Bg7g6,Bg6g5][%mdl 32] B11: Caro-Kann: Two Knights Variation.} 8. h4 {[%emt 0:00:41] [#]} h6 $146 {[%emt 0:00:43]} ({Predecessor:} 8... Qb6 9. h5 Bh6 10. exd5 exd5 11. Bxh6 Nxh6 12. Qf4 Nf5 13. O-O-O O-O-O 14. g3 Qd4 15. Ne4 {½-½ Ligon,S (2141)-Duttagupta,A (2124) FICGS W-ch st1 g05 email 2020 (1)}) 9. h5 {[%emt 0:05:13]} g5 $1 {[%emt 0:00:20] The position is equal.} 10. d4 {[%emt 0:10:44]} Bg7 {[%emt 0:00:05] Black is weak on the light squares} 11. Qd3 {[%emt 0:03:29]} Qb6 {[%emt 0:09:40]} 12. Be3 {[%emt 0:19:56]} Ne7 {[%emt 0:01:18][%cal Od7c5]} (12... Qxb2 {feels hotter.} 13. Rb1 dxe4 14. Qc4 Qa3) 13. O-O-O {[%emt 0:01:23]} f5 {[%emt 0:01:38]} 14. exf5 {[%emt 0:03:04]} exf5 {[%emt 0:04:40]} 15. Kb1 {[%emt 0:03:28]} O-O {[%emt 0:09:22]} 16. g4 {[%emt 0:05:52] Strongly threatening f4.} f4 {[%emt 0:00:20]} 17. Bc1 {[%emt 0:00:17]} Rae8 {[%emt 0:06:40]} 18. b3 {[%emt 0:12:34]} Qb4 {[%emt 0:00:14][%cal Od7c5]} (18... f3 $5 19. Bxf3 Qxd4 20. Qxd4 Bxd4 21. Bxd5+ Nxd5 22. Nxd5 Bxf2 $11) 19. Bf3 {[%emt 0:04:01]} Nc8 {[%emt 0:01:57]} 20. a4 {[%emt 0:04:58]} Nc5 {[%emt 0:20:31]} 21. dxc5 $16 {[%emt 0:04:34]} Qxc3 {[%emt 0:00:07]} 22. Qxc3 {[%emt 0:00:05]} Bxc3 {[%emt 0:00:04]} 23. Bb2 {[%emt 0:00:23]} Bxb2 {[%emt 0:02:02]} 24. Kxb2 {[%emt 0:00:05]} b6 {[%emt 0:00:07]} (24... Re5 $16) 25. b4 {[%emt 0:05:17]} (25. c4 $18) 25... Kf7 {[%emt 0:00:54]} (25... bxc5 $16 26. bxc5 Ne7) 26. Rhe1 $2 {[%emt 0:02:44]} (26. c4 $18) 26... Rxe1 $11 {[%emt 0:00:22]} 27. Rxe1 {[%emt 0:00:05][%cal Oc2c4]} bxc5 {[%emt 0:00:03]} 28. bxc5 {[%emt 0:00:08][%mdl 4096] [#] Endgame Black must now prevent Kc3. KRB-KRN} Ne7 {[%emt 0:00:03]} 29. Be2 {[%emt 0:04:18]} Rb8+ {[%emt 0:00:03]} 30. Kc3 {[%emt 0:00:15]} a5 $1 {[%emt 0:00:10]} 31. Rd1 {[%emt 0:01:58]} Ng8 {[%emt 0:01:30] And now ...Nf6 would win.} 32. Bd3 {[%emt 0:03:34]} Nf6 {[%emt 0:01:27]} 33. Bg6+ {[%emt 0:00:27]} Kg7 {[%emt 0:00:10]} 34. f3 {[%emt 0:01:31]} (34. Bf5 $11 {and White is okay.}) 34... Nd7 $19 {[%emt 0:00:05][%cal Od7e5]} 35. Bd3 {[%emt 0:03:46]} (35. Kd2 $142) 35... Kf6 {[%emt 0:01:19]} ({Worse is} 35... Nxc5 36. Kd4 Nd7 37. c4 $17) 36. Re1 {[%emt 0:00:25] [#]} Ne5 $1 {[%emt 0:02:15]} ({Not} 36... Nxc5 37. Bf5 Nxa4+ 38. Kd3 $17) 37. Be2 {[%emt 0:00:05]} Rb4 {[%emt 0:00:06]} 38. Rd1 {[%emt 0:00:52]} Rxa4 {[%emt 0:02:28]} 39. Rb1 {[%emt 0:00:54]} d4+ {[%emt 0:00:22] What a bad dream for White.   Weighted Error Value: White=0.33/Black=0.13 (very precise)} 0-1

[Event "ETCC Open 2023"]
[Site "Budva"]
[Date "2023.11.11"]
[Round "1.34"]
[White "Warmerdam, Max"]
[Black "Bogner, Sebastian"]
[Result "1-0"]
[ECO "A09"]
[WhiteElo "2638"]
[BlackElo "2536"]
[Annotator "TA"]
[PlyCount "67"]
[EventDate "2023.11.10"]
[EventType "team-tourn"]
[EventCountry "MNE"]
[SourceTitle "playchess.com"]
[Source "ChessBase"]
[SourceQuality "1"]
[WhiteTeam "Netherlands"]
[BlackTeam "Switzerland"]
[WhiteTeamCountry "NED"]
[BlackTeamCountry "SUI"]
[TimeControl "40/5400+30:1800+30"]

{[%evp 9,67,0,0,11,15,12,33,19,32,16,39,56,53,29,24,11,10,19,18,24,24,14,18,0,61,49,89,66,157,-222,-207,-278,-277,-308,-75,-102,206,206,197,204,200,195,198,198,193,193,191,183,177,164,558,537,631,644,598,592,1461,1425,12841,12841]} 1. Nf3 {[%emt 0:00:05]} d5 {[%emt 0:00:11]} 2. g3 {[%emt 0:00:06]} g6 {[%emt 0:00:25]} 3. c4 {[%emt 0:00:21]} dxc4 {[%emt 0:01:44]} 4. Na3 {[%emt 0:00:07]} Bg7 {[%emt 0:00:55]} 5. Nxc4 {[%emt 0:00:16]} c5 {[%emt 0:03:28]} 6. Bg2 {[%emt 0:00:40] A09: Réti Opening: 1 Nf3 d5 2 c4.} Nc6 {[%emt 0:00:56]} 7. d3 {[%emt 0:00:41]} Nh6 {[%emt 0:21:37]} 8. Be3 {[%emt 0:14:31] White is slightly better.} Be6 {[%emt 0:13:31]} 9. O-O {[%emt 0:16:13]} (9. Bxc5 $2 Bxc4 10. O-O (10. dxc4 $2 Qa5+ 11. b4 Nxb4 $19) 10... Be6 $19) (9. Qd2 $5 {[%cal Re3h6]} Nf5 10. Bxc5 $14) 9... b6 {[%emt 0:15:39] [#]} 10. Nfe5 $146 {[%emt 0:14:50]} ({Predecessor:} 10. Rc1 Nf5 11. Bd2 Rc8 12. Bc3 Nfd4 13. Nxd4 Bxd4 14. Qa4 Bd7 15. Bxc6 Bxc6 16. Qxa7 {1-0 Anand,V (2804)-Hammer,J (2677) Norway Masters blitz 3rd 2015 (2)}) 10... Nxe5 {[%emt 0:00:05]} 11. Nxe5 {[%emt 0:00:06]} Bxe5 {[%emt 0:07:47]} 12. Bxa8 {[%emt 0:16:08]} Qxa8 {[%emt 0:00:04]} 13. Bxh6 {[%emt 0:00:05]} Bxb2 {[%emt 0:09:50] This pair of bishops is nice.} (13... Bh3 14. Qa4+ Bd7 15. Qc2 $16 (15. Qb3 Rg8 $16)) 14. Rb1 {[%emt 0:00:19]} Bd4 {[%emt 0:01:02]} 15. e3 {[%emt 0:03:15][%cal Be2e3,Be3d4][%mdl 32]} Bf6 {[%emt 0:00:05]} 16. d4 {[%emt 0:06:51] dxc5 would be deadly.} cxd4 {[%emt 0:07:52]} (16... Bh3 $11 17. Qa4+ Kd8) 17. exd4 {[%emt 0:03:27]} g5 {[%emt 0:02:02]} 18. Rc1 $1 $36 {[%emt 0:03:52][%cal Od4d5][%mdl 2048] Black is under pressure.} Qb7 {[%emt 0:02:31] [#] Dodges d5} ({Better is} 18... Bh3 $14 19. d5 Rg8) 19. Qc2 $2 {[%emt 0:03:52]} (19. d5 $1 $16 {[%cal Rd5e6] and life is bright.} Bxd5 20. Qa4+ b5 21. Qa5) 19... Bh3 $19 {[%emt 0:06:23][%csl Gh3][%cal Rb7g2]} (19... Bxd4 $2 20. Qa4+ (20. Bxg5 Bh3 $17) 20... b5 21. Qxd4 $18) 20. f3 {[%emt 0:06:28]} Bxf1 {[%emt 0:01:31]} (20... Bxd4+ 21. Rf2 Bd7 22. Rd1 Bxf2+ 23. Kxf2 $17) 21. Rxf1 {[%emt 0:00:17] [#]} Bxd4+ $2 {[%emt 0:00:58]} (21... Rg8 $1 $19 {[%cal Rg8g6] is more deadly. Threatens to win with ...Rg6.} 22. Rc1 Rg6 {[%mdl 64] Trapped Piece}) 22. Kg2 $17 {[%emt 0:00:05][%cal Of1d1]} Bc5 $2 {[%emt 0:01:57][%mdl 8192]} (22... Rg8 $17 {stays on course. And now ...Rg6 would win.} 23. Rd1 Rg6 24. Bxg5 (24. Qa4+ Qd7 $17) 24... e5) 23. Bg7 $1 $18 {[%emt 0:02:42][%mdl 64] Deflection} Rg8 {[%emt 0:00:04]} 24. Qxh7 {[%emt 0:00:05]} Rxg7 {[%emt 0:00:02]} 25. Qh8+ {[%emt 0:00:27]} ({Don't play} 25. Qxg7 $6 Qd5 $16) 25... Kd7 {[%emt 0:00:04] White must now prevent ...Rg6.} 26. Rd1+ {[%emt 0:00:05]} ({But not} 26. Qxg7 $6 Qd5 $16) 26... Bd6 {[%emt 0:01:24]} 27. Qxg7 {[%emt 0:00:06][%mdl 4096] Endgame KQR-KQB} f6 {[%emt 0:01:04]} 28. Qg6 {[%emt 0:00:26]} Qc6 {[%emt 0:00:28]} 29. Rd2 {[%emt 0:00:06]} Kc7 $2 {[%emt 0:00:46]} (29... Qa4 {is tougher.} 30. Qg8 Qc6) 30. h4 {[%emt 0:00:53] Rc2 is the strong threat. White is clearly winning.} gxh4 {[%emt 0:00:17]} 31. gxh4 {[%emt 0:00:05][%cal Bg3h4,Bh4h5,Bh5h6][%mdl 32]} Qb5 {[%emt 0:00:42]} 32. Rc2+ {[%emt 0:00:41]} Bc5 {[%emt 0:00:28]} 33. h5 {[%emt 0:00:50] Strongly threatening h6.} Kd7 {[%emt 0:00:36]} 34. h6 {[%emt 0:00:26] Weighted Error Value: White=0.21 (precise) /Black=0.66} 1-0